[Event "November 21 Early 2023"]
[Site "https://www.chess.com"]
[Date "2023.11.21"]
[Round "7"]
[White "ploxoi"]
[Black "Bodnaruk, Anastasia"]
[Result "1-0"]
[Board "78"]
[TimeControl "180+1"]
[BlackFideId "4181751"]
[WhiteElo "2435"]
[BlackElo "2260"]
[BlackTeam "RUS"]
[WhiteClock "0:00:16"]
[BlackClock "0:00:04"]

1. d4 {[%clk 0:03:00]}  Nf6 {[%clk 0:03:00]} 2. c4 {[%clk 0:03:01]}  g6 {[%clk 0:03:00]} 3. Nc3 {[%clk 0:03:00]}  Bg7 {[%clk 0:03:01]} 4. e4 {[%clk 0:03:00]}  d6 {[%clk 0:03:01]} 5. Nf3 {[%clk 0:03:01]}  O-O {[%clk 0:03:01]} 6. Be2 {[%clk 0:03:02]}  e5 {[%clk 0:03:01]} 7. d5 {[%clk 0:03:03]}  a5 {[%clk 0:02:59]} 8. Be3 {[%clk 0:03:02]}  Na6 {[%clk 0:02:57]} 9. Nd2 {[%clk 0:03:02]}  Nc5 {[%clk 0:02:55]} 10. a3 {[%clk 0:03:00]}  Bd7 {[%clk 0:02:42]} 11. b4 {[%clk 0:02:58]}  axb4 {[%clk 0:02:39]} 12. axb4 {[%clk 0:02:59]}  Rxa1 {[%clk 0:02:37]} 13. Qxa1 {[%clk 0:03:00]}  Na6 {[%clk 0:02:36]} 14. Qb2 {[%clk 0:03:00]}  Ng4 {[%clk 0:02:33]} 15. Bxg4 {[%clk 0:02:58]}  Bxg4 {[%clk 0:02:33]} 16. c5 {[%clk 0:02:41]}  f5 {[%clk 0:02:28]} 17. f3 {[%clk 0:02:42]}  Bh5 {[%clk 0:02:27]} 18. O-O {[%clk 0:02:38]}  f4 {[%clk 0:02:15]} 19. Bf2 {[%clk 0:02:38]}  g5 {[%clk 0:02:15]} 20. h3 {[%clk 0:02:38]}  Bg6 {[%clk 0:02:04]} 21. Ra1 {[%clk 0:02:36]}  Nb8 {[%clk 0:01:56]} 22. Ra7 {[%clk 0:02:28]}  h5 {[%clk 0:01:50]} 23. Rxb7 {[%clk 0:02:27]}  g4 {[%clk 0:01:49]} 24. hxg4 {[%clk 0:02:22]}  hxg4 {[%clk 0:01:49]} 25. Kf1 {[%clk 0:02:22]}  Bh5 {[%clk 0:01:40]} 26. Ke2 {[%clk 0:02:12]}  Nd7 {[%clk 0:01:34]} 27. c6 {[%clk 0:01:53]}  Nf6 {[%clk 0:01:13]} 28. b5 {[%clk 0:01:53]}  Qc8 {[%clk 0:01:04]} 29. b6 {[%clk 0:01:45]}  cxb6 {[%clk 0:01:03]} 30. Qc1 {[%clk 0:01:42]}  Rf7 {[%clk 0:00:33]} 31. Rxb6 {[%clk 0:01:34]}  gxf3+ {[%clk 0:00:30]} 32. gxf3 {[%clk 0:01:34]}  Qh3 {[%clk 0:00:30]} 33. Qg1 {[%clk 0:01:24]}  Kh7 {[%clk 0:00:27]} 34. Rb7 {[%clk 0:00:38]}  Qc8 {[%clk 0:00:25]} 35. Rxf7 {[%clk 0:00:37]}  Qa6+ {[%clk 0:00:25]} 36. Ke1 {[%clk 0:00:34]}  Bxf7 {[%clk 0:00:23]} 37. Qh1+ {[%clk 0:00:32]}  Bh5 {[%clk 0:00:18]} 38. Bh4 {[%clk 0:00:28]}  Kg6 {[%clk 0:00:15]} 39. Qg2+ {[%clk 0:00:27]}  Kh6 {[%clk 0:00:15]} 40. Qg5+ {[%clk 0:00:28]}  Kh7 {[%clk 0:00:15]} 41. Qf5+ {[%clk 0:00:25]}  Bg6 {[%clk 0:00:16]} 42. Qh3 {[%clk 0:00:26]}  Kg8 {[%clk 0:00:15]} 43. c7 {[%clk 0:00:16]}  Qa1+ {[%clk 0:00:14]} 44. Nd1 {[%clk 0:00:16]}  Qc1 {[%clk 0:00:07]} 45. c8=Q+ {[%clk 0:00:17]}  Bf8 {[%clk 0:00:04]} 46. Qxc1 {[%clk 0:00:16]} 1-0

[Event "November 21 Early 2023"]
[Site "https://www.chess.com"]
[Date "2023.11.21"]
[Round "7"]
[White "Manukyan, Sargis A."]
[Black "Miszler, Levente"]
[Result "1/2-1/2"]
[Board "79"]
[TimeControl "180+1"]
[WhiteFideId "13303970"]
[BlackFideId "763276"]
[WhiteElo "2204"]
[BlackElo "2186"]
[WhiteTeam "ARM"]
[BlackTeam "HUN"]
[WhiteClock "0:00:10"]
[BlackClock "0:00:09"]

1. d4 {[%clk 0:03:00]}  Nf6 {[%clk 0:02:58]} 2. c4 {[%clk 0:03:01]}  e6 {[%clk 0:02:58]} 3. Nc3 {[%clk 0:03:02]}  Bb4 {[%clk 0:02:59]} 4. e3 {[%clk 0:03:03]}  d5 {[%clk 0:02:57]} 5. a3 {[%clk 0:03:03]}  Bxc3+ {[%clk 0:02:56]} 6. bxc3 {[%clk 0:03:04]}  c5 {[%clk 0:02:54]} 7. cxd5 {[%clk 0:03:05]}  exd5 {[%clk 0:02:49]} 8. Bd3 {[%clk 0:03:05]}  Nc6 {[%clk 0:02:49]} 9. Ne2 {[%clk 0:03:06]}  Bg4 {[%clk 0:02:49]} 10. O-O {[%clk 0:03:06]}  Qc7 {[%clk 0:02:49]} 11. f3 {[%clk 0:03:06]}  Bh5 {[%clk 0:02:49]} 12. Ra2 {[%clk 0:03:06]}  O-O {[%clk 0:02:47]} 13. Nf4 {[%clk 0:03:06]}  Bg6 {[%clk 0:02:46]} 14. g4 {[%clk 0:03:05]}  Rfe8 {[%clk 0:02:46]} 15. h4 {[%clk 0:03:04]}  Bxd3 {[%clk 0:02:45]} 16. Qxd3 {[%clk 0:03:04]}  Rad8 {[%clk 0:02:38]} 17. g5 {[%clk 0:03:03]}  Nd7 {[%clk 0:02:37]} 18. Rg2 {[%clk 0:03:04]}  Nf8 {[%clk 0:02:37]} 19. Nh5 {[%clk 0:03:04]}  Ng6 {[%clk 0:02:30]} 20. Rg3 {[%clk 0:02:49]}  Nxh4 {[%clk 0:02:22]} 21. f4 {[%clk 0:02:38]}  cxd4 {[%clk 0:02:16]} 22. exd4 {[%clk 0:02:36]}  Re4 {[%clk 0:02:11]} 23. Rh3 {[%clk 0:02:21]}  Nf5 {[%clk 0:02:03]} 24. Qf3 {[%clk 0:02:07]}  Rde8 {[%clk 0:02:02]} 25. Qg4 {[%clk 0:02:07]}  Nce7 {[%clk 0:01:44]} 26. Kh1 {[%clk 0:01:41]}  Qc4 {[%clk 0:01:37]} 27. Rg1 {[%clk 0:01:37]}  Qe2 {[%clk 0:01:34]} 28. Rf3 {[%clk 0:01:20]}  Nh4 {[%clk 0:01:23]} 29. Rff1 {[%clk 0:00:49]}  Qxg4 {[%clk 0:01:19]} 30. Rxg4 {[%clk 0:00:49]}  Nhf5 {[%clk 0:01:20]} 31. Rg2 {[%clk 0:00:48]}  Ng6 {[%clk 0:01:13]} 32. Kh2 {[%clk 0:00:47]}  Re2 {[%clk 0:01:01]} 33. Rgf2 {[%clk 0:00:46]}  R8e4 {[%clk 0:00:52]} 34. Ng3 {[%clk 0:00:44]}  Nxg3 {[%clk 0:00:52]} 35. Kxg3 {[%clk 0:00:45]}  Ne7 {[%clk 0:00:51]} 36. f5 {[%clk 0:00:42]}  Rxf2 {[%clk 0:00:41]} 37. Rxf2 {[%clk 0:00:42]}  g6 {[%clk 0:00:42]} 38. f6 {[%clk 0:00:40]}  Nf5+ {[%clk 0:00:42]} 39. Kf3 {[%clk 0:00:40]}  h6 {[%clk 0:00:35]} 40. Rb2 {[%clk 0:00:38]}  Re1 {[%clk 0:00:20]} 41. Bd2 {[%clk 0:00:37]}  Rf1+ {[%clk 0:00:20]} 42. Kg2 {[%clk 0:00:35]}  Rd1 {[%clk 0:00:20]} 43. Kf3 {[%clk 0:00:27]}  hxg5 {[%clk 0:00:17]} 44. Bxg5 {[%clk 0:00:27]}  Rg1 {[%clk 0:00:18]} 45. Bf4 {[%clk 0:00:26]}  g5 {[%clk 0:00:16]} 46. Bb8 {[%clk 0:00:25]}  Kh7 {[%clk 0:00:16]} 47. Rxb7 {[%clk 0:00:25]}  Kg6 {[%clk 0:00:16]} 48. Be5 {[%clk 0:00:25]}  g4+ {[%clk 0:00:16]} 49. Kf2 {[%clk 0:00:25]}  Rc1 {[%clk 0:00:16]} 50. Rxa7 {[%clk 0:00:24]}  Rc2+ {[%clk 0:00:14]} 51. Kg1 {[%clk 0:00:22]}  Rxc3 {[%clk 0:00:15]} 52. Ra8 {[%clk 0:00:23]}  g3 {[%clk 0:00:14]} 53. a4 {[%clk 0:00:20]}  Kg5 {[%clk 0:00:13]} 54. Rg8+ {[%clk 0:00:19]}  Kh4 {[%clk 0:00:13]} 55. a5 {[%clk 0:00:18]}  Kh3 {[%clk 0:00:12]} 56. Rh8+ {[%clk 0:00:17]}  Kg4 {[%clk 0:00:13]} 57. Kf1 {[%clk 0:00:16]}  Kf3 {[%clk 0:00:13]} 58. Bxg3 {[%clk 0:00:12]}  Nxg3+ {[%clk 0:00:13]} 59. Ke1 {[%clk 0:00:12]}  Ne4 {[%clk 0:00:11]} 60. Kd1 {[%clk 0:00:12]}  Nxf6 {[%clk 0:00:10]} 61. Rf8 {[%clk 0:00:12]}  Ne4 {[%clk 0:00:10]} 62. Rxf7+ {[%clk 0:00:12]}  Ke3 {[%clk 0:00:11]} 63. Re7 {[%clk 0:00:07]}  Kd3 {[%clk 0:00:10]} 64. a6 {[%clk 0:00:07]}  Ra3 {[%clk 0:00:10]} 65. Kc1 {[%clk 0:00:08]}  Kxd4 {[%clk 0:00:10]} 66. a7 {[%clk 0:00:08]}  Kc4 {[%clk 0:00:10]} 67. Kb2 {[%clk 0:00:08]}  Ra6 {[%clk 0:00:10]} 68. Rc7+ {[%clk 0:00:08]}  Kd3 {[%clk 0:00:10]} 69. Kb3 {[%clk 0:00:09]}  d4 {[%clk 0:00:10]} 70. Kb4 {[%clk 0:00:09]}  Ra1 {[%clk 0:00:10]} 71. Kb5 {[%clk 0:00:10]}  Nc3+ {[%clk 0:00:10]} 72. Kb6 {[%clk 0:00:10]}  Kc2 {[%clk 0:00:10]} 73. Kb7 {[%clk 0:00:09]}  d3 {[%clk 0:00:10]} 74. a8=Q {[%clk 0:00:08]}  Rxa8 {[%clk 0:00:10]} 75. Kxa8 {[%clk 0:00:09]}  d2 {[%clk 0:00:08]} 76. Rd7 {[%clk 0:00:10]}  d1=Q {[%clk 0:00:09]} 77. Rxd1 {[%clk 0:00:10]}  Kxd1 {[%clk 0:00:09]} 1/2-1/2

[Event "November 21 Early 2023"]
[Site "https://www.chess.com"]
[Date "2023.11.21"]
[Round "7"]
[White "Ljukin, Sergei"]
[Black "Bettalli, Francesco"]
[Result "0-1"]
[Board "80"]
[TimeControl "180+1"]
[WhiteFideId "14102200"]
[BlackFideId "2816453"]
[WhiteElo "2312"]
[BlackElo "2226"]
[WhiteTeam "UKR"]
[BlackTeam "ITA"]
[WhiteClock "0:00:02"]
[BlackClock "0:01:00"]

1. e4 {[%clk 0:03:00]}  e5 {[%clk 0:02:52]} 2. Nf3 {[%clk 0:03:00]}  Nf6 {[%clk 0:02:53]} 3. Nxe5 {[%clk 0:02:58]}  Nc6 {[%clk 0:02:53]} 4. Nf3 {[%clk 0:02:57]}  Nxe4 {[%clk 0:02:53]} 5. d3 {[%clk 0:02:58]}  Nf6 {[%clk 0:02:53]} 6. d4 {[%clk 0:02:58]}  d5 {[%clk 0:02:54]} 7. Bb5 {[%clk 0:02:58]}  Bd6 {[%clk 0:02:54]} 8. O-O {[%clk 0:02:58]}  O-O {[%clk 0:02:54]} 9. Bg5 {[%clk 0:02:58]}  h6 {[%clk 0:02:54]} 10. Bh4 {[%clk 0:02:58]}  Bg4 {[%clk 0:02:54]} 11. c3 {[%clk 0:02:57]}  g5 {[%clk 0:02:51]} 12. Bg3 {[%clk 0:02:56]}  Ne7 {[%clk 0:02:52]} 13. Nbd2 {[%clk 0:02:55]}  Ng6 {[%clk 0:02:52]} 14. Bd3 {[%clk 0:02:48]}  Kg7 {[%clk 0:02:52]} 15. Qc2 {[%clk 0:02:48]}  Qd7 {[%clk 0:02:49]} 16. Rfe1 {[%clk 0:02:44]}  Rae8 {[%clk 0:02:46]} 17. Ne5 {[%clk 0:02:41]}  Bxe5 {[%clk 0:02:45]} 18. dxe5 {[%clk 0:02:40]}  Nh5 {[%clk 0:02:45]} 19. Bxg6 {[%clk 0:02:36]}  fxg6 {[%clk 0:02:45]} 20. Qd3 {[%clk 0:02:26]}  c5 {[%clk 0:02:41]} 21. b4 {[%clk 0:02:20]}  b6 {[%clk 0:02:41]} 22. bxc5 {[%clk 0:02:01]}  bxc5 {[%clk 0:02:41]} 23. Nb3 {[%clk 0:01:54]}  Qc6 {[%clk 0:02:15]} 24. Qe3 {[%clk 0:01:46]}  Nf4 {[%clk 0:01:59]} 25. Bxf4 {[%clk 0:01:33]}  gxf4 {[%clk 0:01:59]} 26. Qxc5 {[%clk 0:01:17]}  Qxc5 {[%clk 0:01:59]} 27. Nxc5 {[%clk 0:01:17]}  Rc8 {[%clk 0:01:59]} 28. Nb3 {[%clk 0:01:13]}  Rxc3 {[%clk 0:01:59]} 29. f3 {[%clk 0:01:02]}  Bc8 {[%clk 0:01:46]} 30. Rac1 {[%clk 0:00:58]}  Rxc1 {[%clk 0:01:25]} 31. Rxc1 {[%clk 0:00:58]}  Ba6 {[%clk 0:01:23]} 32. Rc6 {[%clk 0:00:28]}  Bc4 {[%clk 0:01:22]} 33. Nd4 {[%clk 0:00:29]}  Rb8 {[%clk 0:01:19]} 34. Rc7+ {[%clk 0:00:25]}  Kg8 {[%clk 0:01:19]} 35. h3 {[%clk 0:00:25]}  Rb1+ {[%clk 0:01:10]} 36. Kh2 {[%clk 0:00:25]}  Rd1 {[%clk 0:01:11]} 37. Ne6 {[%clk 0:00:02]}  Re1 {[%clk 0:01:10]} 38. Nxf4 {[%clk 0:00:02]}  g5 {[%clk 0:01:02]} 39. Ng6 {[%clk 0:00:01]}  Bd3 {[%clk 0:01:03]} 40. Ne7+ {[%clk 0:00:01]}  Kf8 {[%clk 0:01:02]} 41. Nxd5 {[%clk 0:00:02]}  Rxe5 {[%clk 0:01:02]} 42. Nb4 {[%clk 0:00:02]}  Bf1 {[%clk 0:01:01]} 43. Rxa7 {[%clk 0:00:02]}  Re2 {[%clk 0:01:00]} 44. Kg3 {[%clk 0:00:02]}  Rxg2# {[%clk 0:01:00]} 0-1

[Event "November 21 Early 2023"]
[Site "https://www.chess.com"]
[Date "2023.11.21"]
[Round "7"]
[White "Demchenko, Anton"]
[Black "Kanyamarala, Trisha"]
[Result "1-0"]
[Board "83"]
[TimeControl "180+1"]
[WhiteFideId "4160258"]
[BlackFideId "45004722"]
[WhiteElo "2545"]
[BlackElo "2078"]
[WhiteTeam "SLO"]
[BlackTeam "IRL"]
[WhiteClock "0:00:41"]
[BlackClock "0:00:00"]

1. a3 {[%clk 0:02:57]}  e5 {[%clk 0:02:58]} 2. c4 {[%clk 0:02:55]}  Nf6 {[%clk 0:02:54]} 3. d3 {[%clk 0:02:54]}  d5 {[%clk 0:02:53]} 4. cxd5 {[%clk 0:02:53]}  Nxd5 {[%clk 0:02:53]} 5. Nf3 {[%clk 0:02:53]}  Nc6 {[%clk 0:02:52]} 6. e4 {[%clk 0:02:54]}  Nf6 {[%clk 0:02:50]} 7. Be2 {[%clk 0:02:54]}  Be7 {[%clk 0:02:49]} 8. O-O {[%clk 0:02:54]}  O-O {[%clk 0:02:49]} 9. Be3 {[%clk 0:02:53]}  Be6 {[%clk 0:02:48]} 10. Nbd2 {[%clk 0:02:52]}  Ng4 {[%clk 0:02:40]} 11. Rc1 {[%clk 0:02:52]}  Nxe3 {[%clk 0:02:33]} 12. fxe3 {[%clk 0:02:53]}  Qd7 {[%clk 0:02:12]} 13. b4 {[%clk 0:02:47]}  a6 {[%clk 0:02:11]} 14. Nb3 {[%clk 0:02:41]}  Rad8 {[%clk 0:02:01]} 15. Nc5 {[%clk 0:02:38]}  Bxc5 {[%clk 0:02:01]} 16. Rxc5 {[%clk 0:02:39]}  f6 {[%clk 0:02:00]} 17. Qc2 {[%clk 0:02:39]}  Qf7 {[%clk 0:01:53]} 18. Ng5 {[%clk 0:02:37]}  Qe7 {[%clk 0:01:47]} 19. Nxe6 {[%clk 0:02:38]}  Qxe6 {[%clk 0:01:48]} 20. d4 {[%clk 0:02:39]}  Qd6 {[%clk 0:01:32]} 21. d5 {[%clk 0:02:35]}  Ne7 {[%clk 0:01:31]} 22. Rxc7 {[%clk 0:02:30]}  Rc8 {[%clk 0:01:30]} 23. Rc5 {[%clk 0:02:20]}  f5 {[%clk 0:01:22]} 24. exf5 {[%clk 0:02:05]}  b6 {[%clk 0:01:18]} 25. Rxc8 {[%clk 0:02:04]}  Rxc8 {[%clk 0:01:17]} 26. Qe4 {[%clk 0:01:59]}  b5 {[%clk 0:01:11]} 27. Qg4 {[%clk 0:01:44]}  Kh8 {[%clk 0:01:05]} 28. e4 {[%clk 0:01:43]}  Qb6+ {[%clk 0:01:03]} 29. Kh1 {[%clk 0:01:42]}  Rc2 {[%clk 0:00:57]} 30. h3 {[%clk 0:01:36]}  Qe3 {[%clk 0:00:45]} 31. Bf3 {[%clk 0:01:36]}  Qb6 {[%clk 0:00:34]} 32. Rd1 {[%clk 0:01:35]}  Qd6 {[%clk 0:00:31]} 33. Qg5 {[%clk 0:01:27]}  Ng8 {[%clk 0:00:28]} 34. Rc1 {[%clk 0:01:27]}  Qc7 {[%clk 0:00:27]} 35. Rxc2 {[%clk 0:01:25]}  Qxc2 {[%clk 0:00:28]} 36. Qe3 {[%clk 0:01:25]}  Nf6 {[%clk 0:00:19]} 37. Qc5 {[%clk 0:01:23]}  Qb1+ {[%clk 0:00:18]} 38. Kh2 {[%clk 0:01:24]}  h6 {[%clk 0:00:17]} 39. Qc3 {[%clk 0:01:20]}  Qf1 {[%clk 0:00:11]} 40. Qxe5 {[%clk 0:01:18]}  Qc4 {[%clk 0:00:09]} 41. d6 {[%clk 0:01:16]}  Qc6 {[%clk 0:00:09]} 42. Qd4 {[%clk 0:01:14]}  Qd7 {[%clk 0:00:08]} 43. e5 {[%clk 0:01:10]}  Ne8 {[%clk 0:00:08]} 44. g4 {[%clk 0:00:58]}  Qd8 {[%clk 0:00:05]} 45. Kg3 {[%clk 0:00:54]}  h5 {[%clk 0:00:04]} 46. d7 {[%clk 0:00:48]}  h4+ {[%clk 0:00:03]} 47. Kf2 {[%clk 0:00:47]}  Nc7 {[%clk 0:00:03]} 48. e6 {[%clk 0:00:47]}  Kh7 {[%clk 0:00:01]} 49. Be4 {[%clk 0:00:46]}  Qg5 {[%clk 0:00:01]} 50. d8=Q {[%clk 0:00:42]}  Qf4+ {[%clk 0:00:01]} 51. Ke2 {[%clk 0:00:42]}  Qh2+ {[%clk 0:00:00]} 52. Qf2 {[%clk 0:00:41]} 1-0

[Event "November 21 Early 2023"]
[Site "https://www.chess.com"]
[Date "2023.11.21"]
[Round "7"]
[White "Cruz Mendez, Jean Marco"]
[Black "AlmasRakhmatullaev"]
[Result "0-1"]
[Board "84"]
[TimeControl "180+1"]
[WhiteFideId "3526402"]
[WhiteElo "2064"]
[BlackElo "2841"]
[WhiteTeam "CUB"]
[WhiteClock "0:00:00"]
[BlackClock "0:00:13"]

1. e4 {[%clk 0:02:59]}  e5 {[%clk 0:02:57]} 2. Bc4 {[%clk 0:02:59]}  Nf6 {[%clk 0:02:57]} 3. d3 {[%clk 0:02:58]}  c6 {[%clk 0:02:57]} 4. Nc3 {[%clk 0:02:57]}  Bb4 {[%clk 0:02:56]} 5. Nf3 {[%clk 0:02:47]}  Qe7 {[%clk 0:02:49]} 6. O-O {[%clk 0:02:43]}  d6 {[%clk 0:02:42]} 7. h3 {[%clk 0:02:40]}  h6 {[%clk 0:02:42]} 8. a3 {[%clk 0:02:39]}  Ba5 {[%clk 0:02:41]} 9. d4 {[%clk 0:02:35]}  Bxc3 {[%clk 0:02:34]} 10. bxc3 {[%clk 0:02:34]}  Nxe4 {[%clk 0:02:34]} 11. dxe5 {[%clk 0:02:23]}  d5 {[%clk 0:02:32]} 12. Bd3 {[%clk 0:02:20]}  Nxc3 {[%clk 0:02:14]} 13. Qe1 {[%clk 0:01:37]}  Na4 {[%clk 0:02:12]} 14. Be3 {[%clk 0:01:32]}  Nd7 {[%clk 0:02:04]} 15. c4 {[%clk 0:01:21]}  Nb2 {[%clk 0:01:58]} 16. Qc3 {[%clk 0:01:17]}  Nxd3 {[%clk 0:01:49]} 17. Qxd3 {[%clk 0:01:18]}  dxc4 {[%clk 0:01:46]} 18. Qxc4 {[%clk 0:01:19]}  O-O {[%clk 0:01:38]} 19. Rfe1 {[%clk 0:01:06]}  Re8 {[%clk 0:01:34]} 20. Bf4 {[%clk 0:01:00]}  Nb6 {[%clk 0:01:33]} 21. Qe4 {[%clk 0:00:57]}  Nd5 {[%clk 0:01:33]} 22. Bd2 {[%clk 0:00:57]}  Be6 {[%clk 0:01:32]} 23. Rad1 {[%clk 0:00:54]}  Qxa3 {[%clk 0:01:24]} 24. Nd4 {[%clk 0:00:52]}  Rad8 {[%clk 0:01:17]} 25. f4 {[%clk 0:00:36]}  Nc3 {[%clk 0:01:02]} 26. Bxc3 {[%clk 0:00:34]}  Qxc3 {[%clk 0:01:01]} 27. f5 {[%clk 0:00:33]}  Bd5 {[%clk 0:00:59]} 28. Qg4 {[%clk 0:00:33]}  Kh7 {[%clk 0:00:41]} 29. f6 {[%clk 0:00:21]}  g6 {[%clk 0:00:40]} 30. Qf4 {[%clk 0:00:13]}  Qb2 {[%clk 0:00:29]} 31. Re2 {[%clk 0:00:12]}  Qb4 {[%clk 0:00:26]} 32. Kh2 {[%clk 0:00:11]}  c5 {[%clk 0:00:25]} 33. Qh4 {[%clk 0:00:09]}  cxd4 {[%clk 0:00:21]} 34. Rxd4 {[%clk 0:00:10]}  Qc5 {[%clk 0:00:18]} 35. Rf2 {[%clk 0:00:07]}  Be6 {[%clk 0:00:14]} 36. Rdf4 {[%clk 0:00:00]}  Qxe5 {[%clk 0:00:13]} 0-1

[Event "November 21 Early 2023"]
[Site "https://www.chess.com"]
[Date "2023.11.21"]
[Round "7"]
[White "Panda Sambit"]
[Black "Narayanan, Srinath"]
[Result "1-0"]
[Board "85"]
[TimeControl "180+1"]
[WhiteFideId "25091794"]
[BlackFideId "5018420"]
[WhiteElo "2216"]
[BlackElo "2442"]
[WhiteTeam "IND"]
[BlackTeam "IND"]
[WhiteClock "0:00:03"]
[BlackClock "0:01:23"]

1. d4 {[%clk 0:02:55]}  Nf6 {[%clk 0:02:59]} 2. c4 {[%clk 0:02:56]}  c5 {[%clk 0:02:59]} 3. d5 {[%clk 0:02:56]}  g6 {[%clk 0:03:00]} 4. Nc3 {[%clk 0:02:55]}  Bg7 {[%clk 0:03:01]} 5. e4 {[%clk 0:02:56]}  O-O {[%clk 0:03:01]} 6. e5 {[%clk 0:01:51]}  Ne8 {[%clk 0:03:00]} 7. f4 {[%clk 0:01:52]}  d6 {[%clk 0:03:00]} 8. Nf3 {[%clk 0:01:52]}  dxe5 {[%clk 0:02:59]} 9. fxe5 {[%clk 0:01:50]}  Bg4 {[%clk 0:03:00]} 10. Bf4 {[%clk 0:01:50]}  Nd7 {[%clk 0:02:59]} 11. Qe2 {[%clk 0:01:49]}  Bxf3 {[%clk 0:02:58]} 12. gxf3 {[%clk 0:01:49]}  Qb8 {[%clk 0:02:56]} 13. d6 {[%clk 0:01:17]}  exd6 {[%clk 0:02:52]} 14. e6 {[%clk 0:01:17]}  Ne5 {[%clk 0:02:47]} 15. e7 {[%clk 0:01:14]}  Nc7 {[%clk 0:02:47]} 16. exf8=Q+ {[%clk 0:01:13]}  Qxf8 {[%clk 0:02:48]} 17. O-O-O {[%clk 0:01:10]}  Ne6 {[%clk 0:02:47]} 18. Be3 {[%clk 0:01:07]}  Re8 {[%clk 0:02:47]} 19. Bg2 {[%clk 0:01:02]}  Nd4 {[%clk 0:02:42]} 20. Bxd4 {[%clk 0:00:54]}  cxd4 {[%clk 0:02:43]} 21. Nd5 {[%clk 0:00:50]}  d3 {[%clk 0:02:43]} 22. Rxd3 {[%clk 0:00:40]}  Nxc4 {[%clk 0:02:36]} 23. Qc2 {[%clk 0:00:28]}  Rc8 {[%clk 0:02:26]} 24. Kb1 {[%clk 0:00:17]}  Bxb2 {[%clk 0:02:17]} 25. Re1 {[%clk 0:00:12]}  Na3+ {[%clk 0:02:02]} 26. Rxa3 {[%clk 0:00:12]}  Rxc2 {[%clk 0:02:01]} 27. Kxc2 {[%clk 0:00:06]}  Bxa3 {[%clk 0:02:01]} 28. Nf6+ {[%clk 0:00:04]}  Kg7 {[%clk 0:01:53]} 29. Re8 {[%clk 0:00:05]}  h6 {[%clk 0:01:40]} 30. Rxf8 {[%clk 0:00:05]}  Kxf8 {[%clk 0:01:41]} 31. f4 {[%clk 0:00:06]}  b6 {[%clk 0:01:39]} 32. Ne4 {[%clk 0:00:05]}  Ke7 {[%clk 0:01:36]} 33. Nc3 {[%clk 0:00:05]}  Bc5 {[%clk 0:01:32]} 34. Nd5+ {[%clk 0:00:04]}  Ke6 {[%clk 0:01:30]} 35. Kd3 {[%clk 0:00:05]}  Kf5 {[%clk 0:01:23]} 36. Bh3# {[%clk 0:00:03]} 1-0